[Event "*** Titled Tuesday 3|2 Blitz"]
[Site "Chess.com"]
[Date "2015.10.06"]
[Round "9"]
[White "3f32"]
[Black "JustKid"]
[Result "1/2-1/2"]
[WhiteElo "2272"]
[BlackElo "2131"]
[TimeControl "180+2"]
[EndTime "12:57:26 PDT"]
[Termination "Game drawn - insufficient material"]

1. d4 {[%clk 0:02:46.5]} 1... d5 {[%clk 0:02:58.6]} 2. c4 {[%clk 0:02:45.9]}
2... e6 {[%clk 0:02:59.3]} 3. Nf3 {[%clk 0:02:39.2]} 3... c5 {[%clk 0:03:00.1]}
4. g3 {[%clk 0:02:41.1]} 4... Nc6 {[%clk 0:02:59.1]} 5. cxd5 {[%clk 0:02:42.3]}
5... exd5 {[%clk 0:02:59.8]} 6. Bg2 {[%clk 0:02:43.8]} 6... Nf6 {[%clk
0:03:01.5]} 7. O-O {[%clk 0:02:45.4]} 7... Be7 {[%clk 0:03:03.2]} 8. Nc3 {[%clk
0:02:46.3]} 8... O-O {[%clk 0:03:04.8]} 9. Bg5 {[%clk 0:02:47.2]} 9... c4 {[%clk
0:03:05.2]} 10. Ne5 {[%clk 0:02:45.5]} 10... Be6 {[%clk 0:03:06.5]} 11. f4
{[%clk 0:02:45.5]} 11... h6 {[%clk 0:03:06.9]} 12. Bxf6 {[%clk 0:02:44.1]} 12...
Bxf6 {[%clk 0:03:08.8]} 13. f5 {[%clk 0:02:44.1]} 13... Bxe5 {[%clk 0:03:10.2]}
14. dxe5 {[%clk 0:02:42.9]} 14... Qb6+ {[%clk 0:03:11.9]} 15. Kh1 {[%clk
0:02:41.7]} 15... Qxb2 {[%clk 0:03:13.4]} 16. Rc1 {[%clk 0:02:30.9]} 16... Kh8
{[%clk 0:03:13.7]} 17. fxe6 {[%clk 0:02:30]} 17... fxe6 {[%clk 0:03:15.6]} 18.
Qc2 {[%clk 0:02:24.8]} 18... Qxc2 {[%clk 0:03:11.2]} 19. Rxc2 {[%clk 0:02:26.7]}
19... Nxe5 {[%clk 0:03:05.3]} 20. Rd1 {[%clk 0:02:23.2]} 20... Ng4 {[%clk
0:03:00.4]} 21. Rd4 {[%clk 0:02:14.6]} 21... Ne3 {[%clk 0:02:56.8]} 22. Rcd2
{[%clk 0:02:14.7]} 22... Rf2 {[%clk 0:02:54]} 23. Bh3 {[%clk 0:02:09.5]} 23...
Raf8 {[%clk 0:02:53.8]} 24. Rf4 {[%clk 0:02:03.8]} 24... R8xf4 {[%clk
0:02:39.2]} 25. gxf4 {[%clk 0:02:05.7]} 25... Rxf4 {[%clk 0:02:37.2]} 26. Kg1
{[%clk 0:02:04.4]} 26... g5 {[%clk 0:02:29.8]} 27. Nd1 {[%clk 0:02:01.2]} 27...
Nxd1 {[%clk 0:02:24.1]} 28. Rxd1 {[%clk 0:02:03.1]} 28... g4 {[%clk 0:02:24.5]}
29. Bg2 {[%clk 0:02:03.8]} 29... b5 {[%clk 0:01:51.6]} 30. e3 {[%clk 0:02:00.1]}
30... Rf7 {[%clk 0:01:47]} 31. e4 {[%clk 0:02:00.7]} 31... b4 {[%clk 0:01:09.4]}
32. exd5 {[%clk 0:01:57.8]} 32... exd5 {[%clk 0:01:10.2]} 33. Rxd5 {[%clk
0:01:47.1]} 33... Rc7 {[%clk 0:01:03.4]} 34. Rd1 {[%clk 0:01:42.8]} 34... c3
{[%clk 0:00:59.8]} 35. Kf2 {[%clk 0:01:41.5]} 35... a5 {[%clk 0:01:00]} 36. Ke3
{[%clk 0:01:41.3]} 36... a4 {[%clk 0:00:57.5]} 37. Bd5 {[%clk 0:01:41.6]} 37...
Rd7 {[%clk 0:00:47.1]} 38. Ke4 {[%clk 0:01:22.6]} 38... Kg7 {[%clk 0:00:37.9]}
39. Rg1 {[%clk 0:01:10.5]} 39... h5 {[%clk 0:00:37.3]} 40. h3 {[%clk 0:01:09.1]}
40... c2 {[%clk 0:00:27.8]} 41. hxg4 {[%clk 0:01:07.4]} 41... Rxd5 {[%clk
0:00:21.5]} 42. gxh5+ {[%clk 0:01:01.4]} 42... Kh6 {[%clk 0:00:18.9]} 43. Kxd5
{[%clk 0:00:52]} 43... b3 {[%clk 0:00:20.2]} 44. axb3 {[%clk 0:00:38.2]} 44...
axb3 {[%clk 0:00:22.1]} 45. Rc1 {[%clk 0:00:34.1]} 45... b2 {[%clk 0:00:21.8]}
46. Rxc2 {[%clk 0:00:35.2]} 46... b1=Q {[%clk 0:00:23.5]} 47. Rc4 {[%clk
0:00:34.8]} 47... Kxh5 {[%clk 0:00:24]} 48. Re4 {[%clk 0:00:35.2]} 48... Kg5
{[%clk 0:00:25]} 49. Ke5 {[%clk 0:00:36.2]} 49... Qb5+ {[%clk 0:00:25.7]} 50.
Kd4 {[%clk 0:00:37.3]} 50... Kf5 {[%clk 0:00:27.2]} 51. Re3 {[%clk 0:00:36.8]}
51... Qb4+ {[%clk 0:00:27.5]} 52. Kd3 {[%clk 0:00:38]} 52... Kf4 {[%clk
0:00:28.6]} 53. Re2 {[%clk 0:00:31.5]} 53... Qd6+ {[%clk 0:00:29.3]} 54. Kc3
{[%clk 0:00:30.7]} 54... Qc5+ {[%clk 0:00:30.2]} 55. Kd3 {[%clk 0:00:30.1]}
55... Kf3 {[%clk 0:00:30.3]} 56. Rc2 {[%clk 0:00:29.5]} 56... Qd5+ {[%clk
0:00:30.8]} 57. Kc3 {[%clk 0:00:29.3]} 57... Ke3 {[%clk 0:00:32.3]} 58. Kb2
{[%clk 0:00:30.4]} 58... Qd4+ {[%clk 0:00:29.9]} 59. Kb3 {[%clk 0:00:29.2]}
59... Kd3 {[%clk 0:00:30.9]} 60. Rc1 {[%clk 0:00:29.7]} 60... Qb6+ {[%clk
0:00:30.7]} 61. Ka2 {[%clk 0:00:30.3]} 61... Qa5+ {[%clk 0:00:31.3]} 62. Kb3
{[%clk 0:00:30.3]} 62... Qb5+ {[%clk 0:00:32.7]} 63. Ka2 {[%clk 0:00:31.3]}
63... Qa4+ {[%clk 0:00:33.1]} 64. Kb2 {[%clk 0:00:32.8]} 64... Qb4+ {[%clk
0:00:34.5]} 65. Ka2 {[%clk 0:00:33]} 65... Qd2+ {[%clk 0:00:32.2]} 66. Kb1
{[%clk 0:00:32.7]} 66... Qe2 {[%clk 0:00:32.5]} 67. Ka1 {[%clk 0:00:30.7]} 67...
Qd2 {[%clk 0:00:25.2]} 68. Kb1 {[%clk 0:00:31.4]} 68... Qb4+ {[%clk 0:00:26.8]}
69. Ka2 {[%clk 0:00:31.7]} 69... Kd2 {[%clk 0:00:28.3]} 70. Rb1 {[%clk
0:00:30.1]} 70... Qc3 {[%clk 0:00:19.9]} 71. Rb2+ {[%clk 0:00:25.5]} 71... Kc1
{[%clk 0:00:18]} 72. Rb1+ {[%clk 0:00:25.7]} 72... Kd2 {[%clk 0:00:18.9]} 73.
Rb2+ {[%clk 0:00:26.6]} 73... Qxb2+ {[%clk 0:00:17.7]} 74. Kxb2 {[%clk 0:00:26]}
1/2-1/2

[Event "*** Titled Tuesday 3|2 Blitz"]
[Site "Chess.com"]
[Date "2015.10.06"]
[Round "9"]
[White "rikyshi"]
[Black "Nutflush"]
[Result "0-1"]
[WhiteElo "2119"]
[BlackElo "1964"]
[TimeControl "180+2"]
[EndTime "12:57:39 PDT"]
[Termination "Nutflush won by resignation"]

1. e4 {[%clk 0:03:01.9]} 1... c5 {[%clk 0:02:39.7]} 2. Nf3 {[%clk 0:03:02.4]}
2... Nc6 {[%clk 0:02:39.9]} 3. d4 {[%clk 0:02:59.1]} 3... cxd4 {[%clk
0:02:41.8]} 4. Nxd4 {[%clk 0:03:01]} 4... Nf6 {[%clk 0:02:43.1]} 5. Nc3 {[%clk
0:03:01.1]} 5... e5 {[%clk 0:02:44.4]} 6. Ndb5 {[%clk 0:03:02.1]} 6... d6 {[%clk
0:02:44.4]} 7. a4 {[%clk 0:03:03.3]} 7... a6 {[%clk 0:02:45.1]} 8. Na3 {[%clk
0:03:04.2]} 8... Be6 {[%clk 0:02:46.6]} 9. Bc4 {[%clk 0:03:01]} 9... Be7 {[%clk
0:02:47.9]} 10. Bxe6 {[%clk 0:03:01.5]} 10... fxe6 {[%clk 0:02:46.7]} 11. O-O
{[%clk 0:03:02.2]} 11... d5 {[%clk 0:02:38.8]} 12. exd5 {[%clk 0:02:59.8]} 12...
exd5 {[%clk 0:02:38.3]} 13. Bg5 {[%clk 0:02:57.7]} 13... d4 {[%clk 0:02:33.8]}
14. Bxf6 {[%clk 0:02:57.8]} 14... Bxf6 {[%clk 0:02:35.7]} 15. Ne4 {[%clk
0:02:58.6]} 15... O-O {[%clk 0:02:33.7]} 16. Nc4 {[%clk 0:02:57.4]} 16... b5
{[%clk 0:01:55.2]} 17. axb5 {[%clk 0:02:51.9]} 17... axb5 {[%clk 0:01:57.1]} 18.
Rxa8 {[%clk 0:02:53.8]} 18... Qxa8 {[%clk 0:01:56.7]} 19. Nb6 {[%clk 0:02:54.8]}
19... Qb7 {[%clk 0:01:48.7]} 20. Nd5 {[%clk 0:02:52.2]} 20... Ne7 {[%clk
0:01:32.9]} 21. Nexf6+ {[%clk 0:02:39.5]} 21... gxf6 {[%clk 0:01:31.8]} 22. Qg4+
{[%clk 0:02:40]} 22... Ng6 {[%clk 0:01:31.6]} 23. Qe6+ {[%clk 0:02:40]} 23...
Kg7 {[%clk 0:01:26.3]} 24. f4 {[%clk 0:02:21.1]} 24... Qf7 {[%clk 0:00:34.2]}
25. Qxf7+ {[%clk 0:02:19]} 25... Rxf7 {[%clk 0:00:33.5]} 26. fxe5 {[%clk
0:02:14]} 26... Nxe5 {[%clk 0:00:26.8]} 27. Rf4 {[%clk 0:02:04.8]} 27... d3
{[%clk 0:00:25.6]} 28. cxd3 {[%clk 0:01:57.5]} 28... Nxd3 {[%clk 0:00:27.5]} 29.
Rg4+ {[%clk 0:01:58.4]} 29... Kf8 {[%clk 0:00:27.6]} 30. b4 {[%clk 0:01:56]}
30... Ra7 {[%clk 0:00:27.7]} 31. h4 {[%clk 0:01:50.1]} 31... Kf7 {[%clk
0:00:15.7]} 32. Rd4 {[%clk 0:01:46.4]} 32... Ne5 {[%clk 0:00:15]} 33. Nc3 {[%clk
0:01:34.2]} 33... h5 {[%clk 0:00:09.7]} 34. Nxb5 {[%clk 0:01:34.6]} 34... Ra1+
{[%clk 0:00:09.9]} 35. Kh2 {[%clk 0:01:34.4]} 35... Ng4+ {[%clk 0:00:10.9]} 36.
Kg3 {[%clk 0:01:35]} 36... Rb1 {[%clk 0:00:11.7]} 37. Kf3 {[%clk 0:01:06.6]}
37... Rb3+ {[%clk 0:00:11.4]} 38. Ke2 {[%clk 0:01:06.5]} 38... Rb2+ {[%clk
0:00:09.5]} 39. Kd3 {[%clk 0:00:59]} 39... Rxg2 {[%clk 0:00:09.8]} 40. Nc7
{[%clk 0:00:51.8]} 40... Ne5+ {[%clk 0:00:09.5]} 41. Kc3 {[%clk 0:00:50.5]}
41... Rg3+ {[%clk 0:00:10.1]} 42. Kb2 {[%clk 0:00:50.7]} 42... Rg4 {[%clk
0:00:08.9]} 43. Kc3 {[%clk 0:00:45.8]} 43... Rg3+ {[%clk 0:00:08.9]} 44. Kb2
{[%clk 0:00:19]} 44... Rg4 {[%clk 0:00:10.1]} 45. Nb5 {[%clk 0:00:18]} 45... Nc6
{[%clk 0:00:06.2]} 46. Rd7+ {[%clk 0:00:14.8]} 46... Kg6 {[%clk 0:00:06.6]} 47.
Nc3 {[%clk 0:00:11.1]} 47... Rxb4+ {[%clk 0:00:07.7]} 48. Ka3 {[%clk 0:00:11.4]}
48... Rxh4 {[%clk 0:00:09]} 49. Rc7 {[%clk 0:00:11.7]} 49... Ne5 {[%clk
0:00:09.6]} 50. Nd5 {[%clk 0:00:12.6]} 50... Rh3+ {[%clk 0:00:09.9]} 51. Kb4
{[%clk 0:00:13]} 51... Rh4+ {[%clk 0:00:10.4]} 52. Kc3 {[%clk 0:00:12.8]} 52...
Rh3+ {[%clk 0:00:09.8]} 53. Kd2 {[%clk 0:00:13.6]} 53... Rd3+ {[%clk 0:00:10.1]}
54. Ke2 {[%clk 0:00:14.1]} 54... Rxd5 {[%clk 0:00:12]} 55. Rc1 {[%clk 0:00:11]}
55... Kg5 {[%clk 0:00:12.9]} 56. Rg1+ {[%clk 0:00:11.7]} 56... Ng4 {[%clk
0:00:14]} 57. Kf3 {[%clk 0:00:12.5]} 57... f5 {[%clk 0:00:15.5]} 58. Kg3 {[%clk
0:00:13.4]} 58... Rd3+ {[%clk 0:00:16.3]} 59. Kg2 {[%clk 0:00:12.7]} 59... Rd2+
{[%clk 0:00:16.9]} 60. Kf3 {[%clk 0:00:11.3]} 60... h4 {[%clk 0:00:14.9]} 61.
Rg2 {[%clk 0:00:04.5]} 61... Rxg2 {[%clk 0:00:15.2]} 62. Kxg2 {[%clk 0:00:06.4]}
62... f4 {[%clk 0:00:16.6]} 63. Kh3 {[%clk 0:00:08.3]} 63... Ne5 {[%clk
0:00:17.1]} 64. Kg2 {[%clk 0:00:09]} 64... Kg4 {[%clk 0:00:18.6]} 65. Kh2 {[%clk
0:00:10.9]} 65... f3 {[%clk 0:00:19.4]} 66. Kh1 {[%clk 0:00:12.8]} 66... Kf4
{[%clk 0:00:20.9]} 67. Kh2 {[%clk 0:00:14.1]} 67... Ke3 {[%clk 0:00:22.4]} 68.
Kg1 {[%clk 0:00:15.9]} 68... Ke2 {[%clk 0:00:23.7]} 69. Kh2 {[%clk 0:00:17]}
69... f2 {[%clk 0:00:25]} 0-1